bitfinex/quotes_BTCUSD_20240901
["timestamp","ask_amount","ask_price","bid_price","bid_amount"]
[1725170594914,0.000817,58164.0,58163.0,1.74075532]
[1725170595151,0.000817,58164.0,58163.0,1.75475532]
[1725170595152,0.001817,58164.0,58163.0,1.75475532]
[1725170595361,0.000817,58164.0,58163.0,1.81787282]
[1725170595779,0.001817,58164.0,58163.0,1.83187282]
[1725170596211,0.001817,58164.0,58163.0,2.09861632]
[1725170596431,0.001817,58164.0,58163.0,2.11361632]
[1725170596884,0.001817,58164.0,58163.0,2.23216272]
[1725170597109,0.00819,58168.0,58167.0,1.95620832]
[1725170597360,0.00819,58168.0,58167.0,2.24766909]
[1725170597588,0.00819,58168.0,58167.0,2.24966909]
[1725170598459,0.00819,58168.0,58167.0,2.31326048]
[1725170599565,0.00819,58168.0,58167.0,2.32526048]
[1725170600052,0.00819,58168.0,58167.0,2.32726048]
[1725170600749,0.00819,58168.0,58167.0,2.33926048]
[1725170600973,0.00819,58168.0,58167.0,2.17079971]
[1725170601405,0.00819,58168.0,58167.0,2.16579971]
[1725170602637,0.00819,58168.0,58167.0,1.92468796]
[1725170604402,0.00819,58168.0,58167.0,1.82196271]
[1725170604841,0.00819,58168.0,58167.0,1.20702571]
[1725170605086,0.00819,58168.0,58167.0,1.25838778]
[1725170605306,0.00819,58168.0,58167.0,1.05872571]
[1725170605957,0.14229,58168.0,58167.0,0.04]
[1725170606202,0.14229,58168.0,58167.0,0.038]
[1725170606203,0.658036,58168.0,58167.0,0.038]
[1725170606447,0.658036,58168.0,58167.0,0.033]
[1725170606448,1.001867,58168.0,58167.0,0.033]
[1725170606654,0.658036,58168.0,58167.0,0.033]
[1725170606862,0.314205,58168.0,58167.0,0.026]
[1725170607078,0.314205,58168.0,58167.0,0.038]
[1725170607939,0.314205,58168.0,58167.0,0.024]
[1725170608150,0.314205,58168.0,58167.0,0.012]
[1725170608352,0.314205,58168.0,58167.0,0.026]
[1725170608575,0.314205,58168.0,58167.0,0.018]
[1725170609037,0.314205,58168.0,58167.0,0.022]
[1725170609507,0.13729,58168.0,58167.0,0.022]
[1725170609722,0.309205,58168.0,58167.0,0.016]
[1725170610200,0.309205,58168.0,58167.0,0.019]
[1725170611514,0.309205,58168.0,58167.0,0.017]
[1725170612140,0.653036,58168.0,58167.0,0.017]
[1725170612598,0.309205,58168.0,58167.0,0.017]
[1725170612834,0.309205,58168.0,58167.0,0.01]
[1725170613052,0.309205,58168.0,58167.0,0.012]
[1725170613278,0.996867,58168.0,58167.0,0.006]
[1725170613713,0.996867,58168.0,58167.0,0.012]
[1725170613899,0.653036,58168.0,58167.0,0.015]
[1725170615056,0.996867,58168.0,58167.0,0.008]
[1725170615726,0.653036,58168.0,58167.0,0.008]
[1725170615945,0.653036,58168.0,58167.0,0.013]
[1725170615946,0.309205,58168.0,58167.0,0.013]
[1725170616157,0.00319,58168.0,58167.0,0.015]
[1725170616375,0.19583002,58173.0,58172.0,0.005]
[1725170616587,0.71153302,58173.0,58172.0,0.012]
[1725170617450,0.36773102,58173.0,58172.0,0.012]
[1725170617918,0.71653302,58173.0,58172.0,0.012]
[1725170619193,0.648203,58173.0,58172.0,0.012]
[1725170619419,0.005,58173.0,58172.0,0.012]
[1725170620930,0.005,58173.0,58172.0,0.183904]
[1725170621363,0.005,58173.0,58172.0,0.527712]
[1725170622469,0.005,58173.0,58172.0,0.87152]
[1725170623323,0.005,58173.0,58172.0,1.17532]
[1725170624084,0.00412471,58180.0,58179.0,0.002]
[1725170624506,0.00412471,58180.0,58179.0,0.007]
[1725170624703,0.00412471,58180.0,58179.0,0.178883]
[1725170624859,0.00412471,58180.0,58179.0,0.527649]
[1725170626081,0.00412471,58180.0,58179.0,0.871415]
[1725170626506,0.00412471,58180.0,58179.0,1.541981]
[1725170626721,0.00712471,58180.0,58179.0,1.541981]
[1725170627376,0.00412471,58180.0,58179.0,1.61925068]
[1725170627602,0.00412471,58180.0,58179.0,1.62523721]
[1725170628052,0.00412471,58180.0,58179.0,1.547981]
[1725170628290,0.00412471,58180.0,58179.0,1.61923612]
[1725170628514,0.00412471,58180.0,58179.0,1.63023612]
[1725170628727,0.00412471,58180.0,58179.0,1.896747]
[1725170628953,0.00412471,58180.0,58179.0,2.02552981]
[1725170629383,0.00412471,58180.0,58179.0,2.02546122]
[1725170630076,0.00412471,58180.0,58179.0,2.03446122]
[1725170630955,0.00412471,58180.0,58179.0,2.02546122]
[1725170631164,0.00412471,58180.0,58179.0,2.02543772]
[1725170631367,0.00412471,58180.0,58179.0,2.03643772]
[1725170631584,0.00412471,58180.0,58179.0,2.02543772]
[1725170631801,0.00412471,58180.0,58179.0,1.552981]
[1725170632055,0.00412471,58180.0,58179.0,1.555981]
[1725170632276,0.00412471,58180.0,58179.0,1.65893664]
[1725170632934,0.00412471,58180.0,58179.0,1.01137064]
[1725170633185,0.00412471,58180.0,58179.0,0.908415]
[1725170633384,0.00412471,58180.0,58179.0,0.922415]
[1725170634644,0.00412471,58180.0,58179.0,0.97388564]
[1725170634866,0.00412471,58180.0,58179.0,0.97388377]
[1725170635076,0.00412471,58180.0,58179.0,1.230415]
[1725170636213,0.00412471,58180.0,58179.0,1.28187673]
[1725170636437,0.00412471,58180.0,58179.0,1.574181]
[1725170636643,0.00412471,58180.0,58179.0,1.230415]
[1725170637299,0.00412471,58180.0,58179.0,1.574181]
[1725170637510,0.00412471,58180.0,58179.0,1.230415]
[1725170638329,0.00412471,58180.0,58179.0,1.574181]
[1725170638557,0.00412471,58180.0,58179.0,1.67713664]
[1725170639094,0.00412471,58180.0,58179.0,1.67708974]
[1725170639506,0.00412471,58180.0,58179.0,1.574181]
[1725170639737,0.00412471,58180.0,58179.0,1.67708974]
[1725170640702,0.00412471,58180.0,58179.0,1.574181]
[1725170640939,0.00412471,58180.0,58179.0,2.02084012]
[1725170641155,0.00412471,58180.0,58179.0,1.67707412]
[1725170642248,0.00412471,58180.0,58179.0,1.65133866]
[1725170642406,0.00412471,58180.0,58179.0,1.574181]
[1725170642958,0.00412471,58180.0,58179.0,1.65133894]
[1725170643500,0.00412471,58180.0,58179.0,1.435081]
[1725170643882,0.00412471,58180.0,58179.0,1.569081]
[1725170644309,0.00412471,58180.0,58179.0,1.9899953]
[1725170644456,0.00412471,58180.0,58179.0,1.569081]
[1725170644900,0.00412471,58180.0,58179.0,1.64622893]
[1725170645080,0.00412471,58180.0,58179.0,1.569081]
[1725170645560,0.00412471,58180.0,58179.0,1.67197412]
[1725170645766,0.00412471,58180.0,58179.0,1.569081]
[1725170646816,0.00412471,58180.0,58179.0,1.67197412]
[1725170647010,0.00412471,58180.0,58179.0,2.11574012]
[1725170647468,0.00412471,58180.0,58179.0,2.11568675]
[1725170648569,0.00412471,58180.0,58179.0,2.012847]
[1725170649616,0.00412471,58180.0,58179.0,2.019847]
[1725170649817,0.00412471,58180.0,58179.0,2.361847]
[1725170650234,0.00412471,58180.0,58179.0,2.46465971]
[1725170652744,0.00412471,58180.0,58179.0,2.361847]
[1725170653159,0.00412471,58180.0,58179.0,2.49039668]
[1725170653792,0.00412471,58180.0,58179.0,2.48839668]
[1725170655188,0.00412471,58180.0,58179.0,1.708181]
[1725170655401,0.00412471,58180.0,58179.0,1.366181]
[1725170656517,0.00412471,58180.0,58179.0,1.49473068]
[1725170657845,0.00412471,58180.0,58179.0,1.366181]
[1725170658250,0.00412471,58180.0,58179.0,1.59019725]
[1725170658915,0.00412471,58180.0,58179.0,1.59519725]
[1725170659129,0.00412471,58180.0,58179.0,1.46664757]
[1725170660189,0.00412471,58180.0,58179.0,1.59644757]
[1725170660394,0.00412471,58180.0,58179.0,1.76794757]
[1725170660609,0.00412471,58180.0,58179.0,1.93844757]
[1725170663025,0.00817,58182.0,58179.0,2.61317434]
[1725170663227,0.1,58192.0,58186.0,1.31550357]
[1725170663440,0.1,58192.0,58186.0,2.22198934]
[1725170663672,0.1,58192.0,58186.0,2.24498934]
[1725170663926,0.1,58192.0,58186.0,2.07652857]
[1725170664185,0.1,58192.0,58186.0,1.338037]
[1725170664389,0.1,58192.0,58186.0,1.46670055]
[1725170665213,0.1,58192.0,58186.0,1.352037]
[1725170666725,0.1,58192.0,58186.0,1.366037]
[1725170667875,0.1,58192.0,58186.0,1.664037]
[1725170668081,0.1,58192.0,58186.0,1.669037]
[1725170668316,0.1,58192.0,58186.0,1.664037]
[1725170668782,0.1,58192.0,58186.0,1.82314908]
[1725170669225,0.1,58192.0,58186.0,1.52514908]
[1725170669226,0.1255,58189.0,58186.0,1.52514908]
[1725170669441,0.1255,58189.0,58186.0,1.52314908]
[1725170669888,0.1255,58189.0,58186.0,1.52514908]
[1725170670108,0.1255,58189.0,58186.0,1.364037]
[1725170670358,0.1,58192.0,58186.0,1.52514908]
[1725170673130,0.1,58192.0,58186.0,2.00860985]
[1725170673581,0.1,58192.0,58186.0,2.35233485]
[1725170675776,0.1,58192.0,58186.0,2.58022593]
[1725170676395,0.1,58192.0,58186.0,2.35233485]
[1725170677476,0.00819,58196.0,58186.0,2.35233485]
[1725170678522,0.00819,58196.0,58186.0,2.35033485]
[1725170678737,0.00819,58196.0,58186.0,2.19122277]
[1725170678948,0.1255,58193.0,58186.0,2.18187408]
[1725170680954,0.1255,58193.0,58186.0,1.88387408]
[1725170681657,0.1255,58193.0,58186.0,1.88187408]
[1725170681907,0.1588,58189.0,58186.0,1.39758191]
[1725170682143,0.1588,58189.0,58186.0,1.40214908]
[1725170683067,0.1588,58189.0,58186.0,1.38814908]
[1725170683299,0.1588,58189.0,58186.0,1.37414908]
[1725170683510,0.1588,58189.0,58186.0,1.38814908]
[1725170683726,0.126317,58187.0,58186.0,1.08142408]
[1725170684749,0.126317,58187.0,58186.0,1.18142408]
[1725170684963,0.126317,58187.0,58186.0,0.73769908]
[1725170685773,0.126317,58187.0,58186.0,1.08142408]
[1725170686390,0.126317,58187.0,58186.0,0.73769908]
[1725170687017,0.126317,58187.0,58186.0,1.08142408]
[1725170687428,0.126317,58187.0,58186.0,0.73769908]
[1725170687633,0.126317,58187.0,58186.0,1.08142408]
[1725170688043,0.126317,58187.0,58186.0,0.73769908]
[1725170688448,0.126317,58187.0,58186.0,1.08142408]
[1725170688883,0.126317,58187.0,58186.0,0.73769908]
[1725170689099,0.126317,58187.0,58186.0,1.08142408]
[1725170694374,0.000817,58187.0,58186.0,1.42514908]
[1725170694584,0.02245174,58194.0,58193.0,0.171841]
[1725170694811,0.02245174,58194.0,58193.0,0.176841]
[1725170695026,0.00819,58196.0,58195.0,0.005]
[1725170695241,0.00819,58196.0,58195.0,0.57906564]
[1725170695683,0.00819,58196.0,58195.0,0.527508]
[1725170696606,0.00819,58196.0,58195.0,0.88518]
[1725170697692,0.13999,58196.0,58195.0,0.89718]
[1725170698540,0.13999,58196.0,58195.0,1.15662801]
[1725170698541,0.00819,58196.0,58195.0,1.15662801]
[1725170698774,0.00819,58196.0,58195.0,1.07929208]
[1725170699238,0.00819,58196.0,58195.0,1.15663359]
[1725170699443,0.00819,58196.0,58195.0,1.05629208]
[1725170700574,0.00819,58196.0,58195.0,1.50307865]
[1725170701459,0.00819,58196.0,58195.0,1.52607865]
[1725170701941,0.00819,58196.0,58195.0,1.42296408]
[1725170702478,0.00819,58196.0,58195.0,1.39696408]
[1725170702701,0.00819,58196.0,58195.0,1.41096408]
[1725170702928,0.00819,58196.0,58195.0,1.42496408]
[1725170703654,0.00819,58196.0,58195.0,1.55385358]
[1725170704122,0.00819,58196.0,58195.0,1.42496408]
[1725170704333,0.00819,58196.0,58195.0,0.92218]
[1725170704579,0.13999,58196.0,58195.0,0.89918]
[1725170706928,0.13999,58196.0,58195.0,1.05829208]
[1725170706929,0.00819,58196.0,58195.0,1.05829208]
[1725170709282,0.00819,58196.0,58195.0,0.89918]
[1725170709492,0.00819,58196.0,58195.0,1.05829208]
[1725170710809,0.00819,58196.0,58195.0,0.89918]
[1725170711295,0.00819,58196.0,58195.0,1.242852]
[1725170711514,0.00819,58196.0,58195.0,1.369652]
[1725170711726,0.00819,58196.0,58195.0,1.392652]
[1725170714409,0.00819,58196.0,58195.0,1.397652]
[1725170716193,0.00819,58196.0,58195.0,1.497652]
[1725170716401,0.00819,58196.0,58195.0,1.59307171]
[1725170717050,0.00819,58196.0,58195.0,1.93674371]
[1725170717606,0.00819,58196.0,58195.0,1.59307171]
[1725170717709,0.00819,58196.0,58195.0,1.93674371]
[1725170718151,0.00819,58196.0,58195.0,1.93874371]
[1725170718361,0.00819,58196.0,58195.0,1.59307171]
[1725170718812,0.00819,58196.0,58195.0,2.09284371]
[1725170719051,0.00819,58196.0,58195.0,2.09484371]
[1725170719484,0.00819,58196.0,58195.0,2.2494616]
[1725170719934,0.00819,58196.0,58195.0,2.24946156]
[1725170720148,0.00819,58196.0,58195.0,2.09484371]
[1725170720614,0.00819,58196.0,58195.0,2.249448]
[1725170721279,0.00819,58196.0,58195.0,2.10484371]
[1725170721526,0.00819,58196.0,58195.0,2.10684371]
[1725170721955,0.00819,58196.0,58195.0,2.45051571]
[1725170722200,0.00819,58196.0,58195.0,2.6787937]
[1725170722391,0.00819,58196.0,58195.0,2.6647937]
[1725170722604,0.00819,58196.0,58195.0,2.6507937]
[1725170722822,0.00819,58196.0,58195.0,2.6787937]
[1725170723305,0.00818,58198.0,58197.0,0.029]
[1725170723533,0.00818,58198.0,58197.0,0.61216556]
[1725170723759,0.00818,58198.0,58197.0,1.64314556]
[1725170723999,0.00818,58198.0,58197.0,1.63971]
[1725170724448,0.00818,58198.0,58197.0,1.98337]
[1725170725618,0.00818,58198.0,58197.0,1.99737]
[1725170725832,0.00818,58198.0,58197.0,2.01137]
[1725170726485,0.00818,58198.0,58197.0,2.16580311]
[1725170726925,0.00818,58198.0,58197.0,2.16580192]
[1725170728281,0.00818,58198.0,58197.0,1.97270192]
[1725170728502,0.00818,58198.0,58197.0,1.68688971]
[1725170728712,0.00818,58198.0,58197.0,1.33822971]
[1725170729143,0.16248,58198.0,58197.0,0.65843602]
[1725170729396,0.29608,58198.0,58197.0,0.55549]
[1725170729587,0.29608,58198.0,58197.0,0.89915]
[1725170730007,0.29608,58198.0,58197.0,0.99456971]
[1725170730214,0.14178,58198.0,58197.0,0.89915]
[1725170730443,0.14178,58198.0,58197.0,0.99456971]
[1725170732184,0.00818,58198.0,58197.0,1.33822971]
[1725170732395,0.00818,58198.0,58197.0,1.40185083]
[1725170732598,0.00818,58198.0,58197.0,1.42485083]
[1725170732819,0.00818,58198.0,58197.0,1.52782549]
[1725170733346,0.00818,58198.0,58197.0,1.55352897]
[1725170733580,0.14178,58198.0,58197.0,0.55549]
[1725170733814,0.811561,58198.0,58197.0,0.11023784]
[1725170734036,0.811561,58198.0,58197.0,0.033]
[1725170735347,0.811561,58198.0,58197.0,0.019]
[1725170736281,0.811561,58198.0,58197.0,0.033]
[1725170736765,1.155215,58198.0,58197.0,0.033]
[1725170737000,1.155215,58198.0,58197.0,0.028]
[1725170739673,1.498869,58198.0,58197.0,0.028]
[1725170739912,1.65790983,58198.0,58197.0,0.028]
[1725170741576,1.65790983,58198.0,58197.0,0.014]
[1725170742042,1.155215,58198.0,58197.0,0.027]
[1725170742308,1.155215,58198.0,58194.0,0.0058987]
[1725170742309,0.85918,58195.0,58194.0,0.0058987]
[1725170742541,0.171833,58196.0,58195.0,0.007]
[1725170742771,0.29608,58198.0,58197.0,0.005]
[1725170743002,0.467907,58198.0,58197.0,0.0058987]
[1725170743462,0.469907,58198.0,58197.0,0.0068987]
[1725170743683,0.469907,58198.0,58197.0,0.0088987]
[1725170743918,0.467907,58198.0,58197.0,0.0078987]
[1725170744180,0.29608,58198.0,58197.0,0.0078987]
[1725170744419,0.01018,58198.0,58197.0,0.5283887]
[1725170744909,0.14177,58202.0,58197.0,0.5283887]
[1725170744910,0.21600526,58204.0,58203.0,0.005]
[1725170745368,0.171802,58207.0,58206.0,0.005]
[1725170746779,0.515403,58207.0,58206.0,0.005]
[1725170747001,0.515403,58207.0,58206.0,0.007]
[1725170747929,0.767103,58207.0,58206.0,0.007]
[1725170748159,0.423502,58207.0,58206.0,0.012]
[1725170748914,0.767103,58207.0,58206.0,0.012]
[1725170749143,0.423502,58207.0,58206.0,0.012]
[1725170749585,0.767103,58207.0,58206.0,0.012]
[1725170749813,0.368202,58207.0,58206.0,0.012]
[1725170751445,0.0638,58214.0,58209.0,0.005]
[1725170751685,0.343572,58212.0,58209.0,0.005]
[1725170751917,0.17179,58211.0,58209.0,0.005]
[1725170752150,0.343572,58212.0,58209.0,0.005]
[1725170752151,0.171791,58210.0,58209.0,0.005]
[1725170752614,0.51536,58212.0,58211.0,0.005]
[1725170753846,0.171788,58212.0,58211.0,0.005]
[1725170754079,0.00818,58213.0,58212.0,0.005]
[1725170755033,0.171785,58212.0,58211.0,0.005]
[1725170756231,0.171785,58212.0,58208.0,0.005]
[1725170756232,0.515383,58209.0,58208.0,0.005]
[1725170756471,0.171797,58208.0,58207.0,0.005]
[1725170756719,0.171812,58203.0,58202.0,0.005]
[1725170756957,0.1964,58207.0,58198.0,0.005]
[1725170756958,0.85912,58199.0,58198.0,0.01]
[1725170757191,0.711872,58199.0,58198.0,0.01]
[1725170758167,0.1964,58199.0,58198.0,0.01]
[1725170758397,0.515448,58202.0,58201.0,0.005]
[1725170759281,0.515448,58202.0,58201.0,0.01]
[1725170759906,0.515448,58202.0,58201.0,0.02]
[1725170760357,0.859081,58202.0,58201.0,0.015]
[1725170761187,0.859081,58202.0,58201.0,0.023]
[1725170761838,0.859081,58202.0,58201.0,0.018]
[1725170762301,0.922581,58202.0,58201.0,0.018]
[1725170762740,1.266214,58202.0,58201.0,0.018]
[1725170764100,1.673647,58202.0,58201.0,0.018]
[1725170764813,1.673647,58202.0,58201.0,0.008]
[1725170765043,1.673647,58202.0,58201.0,0.009]
[1725170765723,1.673647,58202.0,58201.0,0.001]
[1725170766467,1.202789,58198.0,58197.0,0.0008987]
[1725170766698,1.36182983,58198.0,58197.0,0.0008987]
[1725170770033,1.42562983,58198.0,58197.0,0.0008987]
[1725170770480,1.9286226,58198.0,58197.0,0.0008987]
[1725170770695,2.0336226,58198.0,58197.0,0.0008987]
[1725170771814,2.4002766,58198.0,58197.0,0.0018987]
[1725170772029,2.4183589,58198.0,58197.0,0.0008987]
[1725170772475,2.4183589,58198.0,58197.0,0.0018987]
[1725170773161,2.4193589,58198.0,58197.0,0.0028987]
[1725170773406,2.0757049,58198.0,58197.0,0.0028987]
[1725170773645,1.95086613,58198.0,58197.0,0.0018987]
[1725170773865,1.95186613,58198.0,58197.0,0.0028987]
[1725170774104,1.93378383,58198.0,58197.0,0.0028987]
[1725170775032,1.87028383,58198.0,58197.0,0.0028987]
[1725170775254,1.46282983,58198.0,58197.0,0.0028987]
[1725170775502,1.303789,58198.0,58197.0,0.0028987]
[1725170775935,1.302789,58198.0,58197.0,0.0018987]
[1725170776167,1.302789,58198.0,58197.0,0.0008987]
[1725170776389,1.303789,58198.0,58197.0,0.0018987]
[1725170777112,1.46282983,58198.0,58197.0,0.0018987]
[1725170777588,1.46282983,58198.0,58197.0,0.0028987]
[1725170778703,0.960135,58198.0,58197.0,0.0028987]
[1725170778935,0.516481,58198.0,58197.0,0.1173987]
[1725170779245,0.516481,58198.0,58197.0,0.1223987]
[1725170779671,0.515481,58198.0,58197.0,0.1213987]
[1725170780095,0.516481,58198.0,58197.0,0.1213987]
[1725170780311,0.516481,58198.0,58197.0,0.1163987]
[1725170780545,0.516481,58198.0,58197.0,0.0068987]
[1725170780756,0.516481,58198.0,58197.0,0.0058987]
[1725170782102,0.172827,58198.0,58197.0,0.0058987]
[1725170782322,0.172827,58198.0,58197.0,0.2653987]
[1725170782539,0.001,58198.0,58197.0,0.2653987]
[1725170782753,0.001,58198.0,58197.0,0.2723987]
[1725170783398,0.001,58198.0,58197.0,0.2703987]
[1725170784324,0.001,58198.0,58197.0,0.2723987]
[1725170786002,0.001,58198.0,58197.0,0.2703987]
[1725170786474,0.172827,58198.0,58197.0,0.2703987]
[1725170786944,0.516481,58198.0,58197.0,0.2703987]
[1725170787172,0.172827,58198.0,58197.0,0.1253987]
[1725170787411,0.172827,58198.0,58197.0,0.1273987]
[1725170787640,0.172827,58198.0,58197.0,0.1253987]
[1725170790213,0.172827,58198.0,58197.0,0.2705987]
[1725170791177,0.344436,58204.0,58203.0,0.005]
[1725170791414,0.516245,58204.0,58203.0,0.0978]
[1725170791659,0.172627,58204.0,58203.0,0.243]
[1725170792126,0.516245,58204.0,58203.0,0.243]
[1725170792609,0.516245,58204.0,58203.0,0.244]
[1725170792837,0.516245,58204.0,58203.0,0.246]
[1725170793046,0.172627,58204.0,58203.0,0.246]
[1725170793990,0.173627,58204.0,58203.0,0.247]
[1725170795194,0.001818,58204.0,58203.0,0.423812]
[1725170795427,0.001818,58204.0,58203.0,0.767436]
[1725170795912,0.000818,58204.0,58203.0,0.766436]
[1725170796139,0.000818,58204.0,58203.0,0.767436]
[1725170796613,0.000818,58204.0,58203.0,1.11006]
[1725170797100,0.000818,58204.0,58203.0,1.11806]
[1725170797557,0.000818,58204.0,58203.0,1.11706]
[1725170798509,0.000818,58204.0,58203.0,1.12106]
[1725170798737,0.000818,58204.0,58203.0,1.13006]
[1725170799446,0.000818,58204.0,58203.0,1.65572483]
[1725170800407,0.000818,58204.0,58203.0,1.28910083]
[1725170800869,0.000818,58204.0,58203.0,1.27710083]
[1725170801112,0.000818,58204.0,58203.0,1.29110083]
[1725170801578,0.000818,58204.0,58203.0,1.28210083]
[1725170801804,0.000818,58204.0,58203.0,1.29210083]
[1725170802282,0.000818,58204.0,58203.0,1.28210083]
[1725170802751,0.000818,58204.0,58203.0,1.29610083]
[1725170805724,0.000818,58204.0,58203.0,1.63972483]
[1725170805950,0.000818,58204.0,58203.0,1.66272483]
[1725170810830,0.000818,58204.0,58203.0,1.66772483]
[1725170811053,0.000818,58204.0,58203.0,1.74483138]
[1725170811960,0.000818,58204.0,58203.0,1.66772483]
[1725170812389,0.000818,58204.0,58203.0,2.01134883]
[1725170812653,0.000818,58204.0,58203.0,1.66772483]
[1725170814032,0.000818,58204.0,58203.0,1.71406626]
[1725170814264,0.000818,58204.0,58203.0,1.29610083]
[1725170814478,0.000818,58204.0,58203.0,1.13706]
[1725170814705,0.000818,58207.0,58206.0,1.777731]
[1725170815169,0.000818,58207.0,58206.0,1.82906713]
[1725170815642,0.000818,58207.0,58206.0,1.85206713]
[1725170816044,0.000818,58207.0,58206.0,1.86306713]
[1725170816934,0.000818,58207.0,58206.0,1.86106713]
[1725170817164,0.000818,58207.0,58206.0,1.86506713]
[1725170817897,0.000818,58207.0,58206.0,1.87906713]
[1725170818131,0.000818,58207.0,58206.0,1.916731]
[1725170818368,0.000818,58207.0,58206.0,1.9937352]
[1725170818598,0.000818,58207.0,58206.0,2.0077352]
[1725170818818,0.000818,58207.0,58206.0,1.94938315]
[1725170819050,0.000818,58207.0,58206.0,1.93538315]
[1725170819265,0.000818,58207.0,58206.0,1.92138315]
[1725170819476,0.000818,58207.0,58206.0,2.03805542]
[1725170819696,0.000818,58207.0,58206.0,2.03807504]
[1725170819910,0.000818,58207.0,58206.0,1.93538315]
[1725170820377,0.000818,58207.0,58206.0,2.03807504]
[1725170820596,0.000818,58207.0,58206.0,2.05207504]
[1725170820822,0.000818,58207.0,58206.0,2.05007504]
[1725170821042,0.000818,58207.0,58206.0,2.05207504]
[1725170821257,0.000818,58207.0,58206.0,1.94938315]
[1725170821478,0.000818,58207.0,58206.0,2.05207504]
[1725170822440,0.000818,58207.0,58206.0,2.0521064]
[1725170823235,0.000818,58207.0,58206.0,1.94938315]
[1725170823439,0.000818,58207.0,58206.0,2.0521064]
[1725170824130,0.000818,58207.0,58206.0,2.05211324]
[1725170824388,0.000818,58207.0,58206.0,1.94938315]
[1725170824614,0.000818,58207.0,58206.0,2.07774801]
[1725170825211,0.000818,58207.0,58206.0,2.07781599]
[1725170826794,0.000818,58207.0,58206.0,1.94938315]
[1725170827162,0.000818,58207.0,58206.0,2.07782805]
[1725170827374,0.000818,58207.0,58206.0,2.07584637]
[1725170828016,0.000818,58207.0,58206.0,1.94738315]
[1725170828260,0.000818,58207.0,58206.0,2.07584948]
[1725170830274,0.000818,58207.0,58206.0,2.07084948]
[1725170830487,0.000818,58207.0,58206.0,1.557124]
[1725170830736,0.000818,58207.0,58206.0,1.65992517]
[1725170830945,0.000818,58207.0,58206.0,1.557124]
[1725170831382,0.000818,58207.0,58206.0,1.65992517]
[1725170833448,0.000818,58207.0,58206.0,1.557124]
[1725170833904,0.000818,58207.0,58206.0,1.65998043]
[1725170834127,0.000818,58207.0,58206.0,1.557124]
[1725170835439,0.000818,58207.0,58206.0,1.68559033]
[1725170835651,0.000818,58207.0,58206.0,1.31642231]
[1725170835879,0.000818,58207.0,58206.0,1.213517]
[1725170836096,0.000818,58207.0,58206.0,1.31642558]
[1725170836322,0.000818,58207.0,58206.0,1.213517]
[1725170836777,0.000818,58207.0,58206.0,1.34198333]
[1725170837728,0.000818,58207.0,58206.0,1.213517]
[1725170837954,0.000818,58207.0,58206.0,1.34218987]
[1725170839278,0.000818,58207.0,58206.0,1.213517]
[1725170839955,0.000818,58207.0,58206.0,1.34224224]
[1725170840164,0.000818,58207.0,58206.0,1.213517]
[1725170840819,0.000818,58207.0,58206.0,0.68416856]
[1725170841061,0.000818,58207.0,58206.0,0.55541]
[1725170841293,0.000818,58207.0,58206.0,1.00202937]
[1725170841521,0.000818,58207.0,58206.0,0.899017]
[1725170841968,0.000818,58207.0,58206.0,0.885017]
[1725170842197,0.000818,58207.0,58206.0,0.899017]
[1725170842886,0.000818,58207.0,58206.0,0.885017]
[1725170843111,0.000818,58207.0,58206.0,0.54141]
[1725170843365,0.000818,58207.0,58206.0,0.55541]
[1725170846094,0.000818,58207.0,58206.0,0.11730563]
[1725170846309,0.000818,58207.0,58206.0,0.11730457]
[1725170847457,0.000818,58207.0,58206.0,0.10330457]
[1725170847683,0.000818,58207.0,58206.0,0.02]
[1725170847902,0.000818,58207.0,58206.0,0.031]
[1725170848347,0.000818,58207.0,58206.0,0.023]
[1725170848573,0.000818,58207.0,58206.0,0.031]
[1725170848791,0.172618,58207.0,58206.0,0.029]
[1725170849220,0.172618,58207.0,58206.0,0.08053691]
[1725170849427,0.516219,58207.0,58206.0,0.029]
[1725170849633,0.516219,58207.0,58206.0,0.08053836]
[1725170849847,0.516219,58207.0,58206.0,0.029]
[1725170850621,0.516219,58207.0,58206.0,0.08053836]
[1725170850838,0.516219,58207.0,58206.0,0.029]
[1725170851299,0.516219,58207.0,58206.0,0.031]
[1725170851300,0.172618,58207.0,58206.0,0.031]
[1725170851518,0.516219,58207.0,58206.0,0.031]
[1725170852176,0.516219,58207.0,58206.0,0.08253128]
[1725170852419,0.172618,58207.0,58206.0,0.031]
[1725170852642,0.172618,58207.0,58206.0,0.10830457]
[1725170853305,0.000818,58207.0,58206.0,0.28010757]
[1725170853547,0.000818,58207.0,58206.0,0.65081]
[1725170853750,0.000818,58207.0,58206.0,0.994417]
[1725170854402,0.000818,58207.0,58206.0,1.15345783]
[1725170854609,0.000818,58207.0,58206.0,1.68873901]
[1725170854884,0.000818,58207.0,58206.0,1.58566483]
[1725170856200,0.000818,58207.0,58206.0,1.57466483]
[1725170856629,0.000818,58207.0,58206.0,1.58866483]
[1725170857278,0.000818,58207.0,58206.0,1.58066483]
[1725170857702,0.000818,58207.0,58206.0,1.59366483]
[1725170864283,0.000818,58207.0,58206.0,1.94227183]
[1725170864494,0.000818,58207.0,58206.0,1.96527183]
[1725170864707,0.000818,58207.0,58206.0,2.11983241]
[1725170865163,0.000818,58207.0,58206.0,1.96527183]
[1725170865385,0.000818,58207.0,58206.0,2.06527183]
[1725170865655,0.000818,58207.0,58206.0,2.06727183]
[1725170866105,0.000818,58207.0,58206.0,2.06527183]
[1725170868325,0.000818,58207.0,58206.0,2.00161107]
[1725170871010,0.000818,58207.0,58206.0,2.00361107]
[1725170871921,0.000818,58207.0,58206.0,2.00161107]
[1725170872127,0.000818,58207.0,58206.0,2.15620867]
[1725170872336,0.000818,58207.0,58206.0,2.00161107]
[1725170873022,0.000818,58207.0,58206.0,2.15621274]
[1725170873247,0.000818,58207.0,58206.0,2.15421274]
[1725170873478,0.000818,58207.0,58206.0,2.15621274]